bitfinex/quotes_BTCUSD_20241011
["timestamp","ask_amount","ask_price","bid_price","bid_amount"]
[1728610699642,0.001632,60128.0,60127.0,0.78399247]
[1728610700083,0.001632,60128.0,60127.0,0.58444618]
[1728610700302,0.001632,60128.0,60127.0,0.49354618]
[1728610700527,0.001632,60128.0,60127.0,0.50754618]
[1728610700961,0.001632,60128.0,60127.0,0.49354618]
[1728610701434,0.001632,60128.0,60127.0,0.50754618]
[1728610701643,0.001632,60128.0,60127.0,0.52154618]
[1728610701851,0.001632,60128.0,60127.0,0.49354618]
[1728610702240,0.001632,60128.0,60127.0,0.50754618]
[1728610702453,0.001632,60128.0,60127.0,0.49194705]
[1728610702700,0.001632,60128.0,60127.0,0.50753699]
[1728610703111,0.001632,60128.0,60127.0,0.52153699]
[1728610705949,0.001632,60128.0,60127.0,0.52153302]
[1728610706577,0.001632,60128.0,60127.0,0.51953302]
[1728610706792,0.167132,60128.0,60127.0,0.36257827]
[1728610707011,0.28795359,60128.0,60127.0,0.19826897]
[1728610707226,0.1875073,60128.0,60127.0,0.32299575]
[1728610707443,0.1875073,60128.0,60127.0,0.19826897]
[1728610707658,0.1875073,60128.0,60127.0,0.28403438]
[1728610708317,0.1875073,60128.0,60127.0,0.29803438]
[1728610708532,0.1875073,60128.0,60127.0,0.27903438]
[1728610708769,0.1875073,60128.0,60127.0,0.25407974]
[1728610709033,0.1875073,60128.0,60127.0,0.26707974]
[1728610709269,0.1875073,60128.0,60127.0,0.23749377]
[1728610709471,0.1875073,60128.0,60127.0,0.17826335]
[1728610709678,0.1875073,60128.0,60127.0,0.19726335]
[1728610710456,0.1875073,60128.0,60127.0,0.24712105]
[1728610712112,0.1875073,60128.0,60127.0,0.24212105]
[1728610712319,0.1875073,60128.0,60127.0,0.24712105]
[1728610712520,0.1875073,60128.0,60127.0,0.19725386]
[1728610713989,0.167132,60128.0,60127.0,0.24711156]
[1728610714205,0.167132,60128.0,60127.0,0.24709084]
[1728610714402,0.18750158,60128.0,60127.0,0.24709084]
[1728610714606,0.18750158,60128.0,60127.0,0.19725386]
[1728610718999,0.18750158,60128.0,60127.0,0.181683]
[1728610719222,0.18750158,60128.0,60127.0,0.19724398]
[1728610722422,0.11200158,60128.0,60127.0,0.36987918]
[1728610722628,0.11200158,60128.0,60127.0,0.44126845]
[1728610722835,0.091632,60128.0,60127.0,0.44126845]
[1728610723126,0.001632,60128.0,60127.0,0.44126845]
[1728610723373,0.001632,60128.0,60127.0,0.36655328]
[1728610723840,0.001632,60128.0,60127.0,0.36855328]
[1728610724091,0.001632,60128.0,60127.0,0.46817351]
[1728610724320,0.001632,60128.0,60127.0,0.46617351]
[1728610724933,0.001632,60128.0,60127.0,0.36655328]
[1728610725139,0.001632,60128.0,60127.0,0.49107857]
[1728610725346,0.001632,60128.0,60127.0,0.46616185]
[1728610725971,0.001632,60128.0,60127.0,0.36655328]
[1728610726171,0.001632,60128.0,60127.0,0.46616282]
[1728610726385,0.001632,60128.0,60127.0,0.46616301]
[1728610726591,0.001632,60128.0,60127.0,0.36655328]
[1728610727253,0.001632,60128.0,60127.0,0.46616584]
[1728610728458,0.001632,60128.0,60127.0,0.36655328]
[1728610728649,0.001632,60128.0,60127.0,0.3509923]
[1728610728860,0.001632,60128.0,60127.0,0.46616569]
[1728610729177,0.001632,60128.0,60127.0,0.46616542]
[1728610731362,0.001632,60128.0,60127.0,0.44126583]
[1728610731568,0.176132,60128.0,60127.0,0.44126583]
[1728610731777,0.176132,60128.0,60127.0,0.27195653]
[1728610732001,0.176132,60128.0,60127.0,0.181683]
[1728610732239,0.176132,60128.0,60127.0,0.19724858]
[1728610732470,0.19648662,60128.0,60127.0,0.19724858]
[1728610733360,0.176132,60128.0,60127.0,0.19724858]
[1728610733573,0.176132,60128.0,60127.0,0.36655788]
[1728610734215,0.176132,60128.0,60127.0,0.4163689]
[1728610734441,0.176132,60128.0,60127.0,0.19724858]
[1728610734879,0.19648662,60128.0,60127.0,0.19724858]
[1728610739331,0.099032,60128.0,60127.0,0.19724858]
[1728610739620,0.001632,60128.0,60127.0,0.36988372]
[1728610739826,0.001632,60128.0,60127.0,0.4163687]
[1728610740624,0.001632,60128.0,60127.0,0.41636653]
[1728610743954,0.001632,60128.0,60127.0,0.40080095]
[1728610744155,0.001632,60128.0,60127.0,0.41639048]
[1728610744840,0.001632,60128.0,60127.0,0.44129481]
[1728610745384,0.001632,60128.0,60127.0,0.36658183]
[1728610745590,0.001632,60128.0,60127.0,0.56619913]
[1728610746041,0.001632,60128.0,60127.0,0.56819913]
[1728610746486,0.001632,60128.0,60127.0,0.59110346]
[1728610747149,0.001632,60128.0,60127.0,0.46858025]
[1728610747364,0.001632,60128.0,60127.0,0.520539]
[1728610747588,0.001632,60128.0,60127.0,0.52053834]
[1728610748002,0.001632,60128.0,60127.0,0.69991018]
[1728610748207,0.001632,60128.0,60127.0,0.67032289]
[1728610748432,0.001632,60128.0,60127.0,0.58385105]
[1728610748639,0.001632,60128.0,60127.0,0.57085105]
[1728610749272,0.001632,60128.0,60127.0,0.58485105]
[1728610749682,0.001632,60128.0,60127.0,0.68532289]
[1728610749878,0.001632,60128.0,60127.0,1.02865966]
[1728610750232,0.001632,60128.0,60127.0,0.79402289]
[1728610750417,0.001632,60128.0,60127.0,1.03021813]
[1728610750646,0.001632,60128.0,60127.0,0.80802289]
[1728610750858,0.001632,60128.0,60127.0,0.79559061]
[1728610751108,0.001632,60128.0,60127.0,0.80959061]
[1728610751590,0.001632,60128.0,60127.0,1.01619978]
[1728610751819,0.001632,60128.0,60127.0,1.03019978]
[1728610752052,0.001632,60128.0,60127.0,1.04419978]
[1728610752298,0.001632,60128.0,60127.0,0.82359061]
[1728610752538,0.001632,60128.0,60127.0,0.87614676]
[1728610752745,0.001632,60128.0,60127.0,0.77644676]
[1728610753435,0.001632,60128.0,60127.0,0.76087904]
[1728610753990,0.001632,60128.0,60127.0,0.76753104]
[1728610763060,0.001632,60128.0,60127.0,0.61450305]
[1728610763260,0.001632,60128.0,60127.0,0.76753104]
[1728610763533,0.001632,60128.0,60127.0,0.71557229]
[1728610767395,0.001632,60128.0,60127.0,0.76739736]
[1728610774416,0.001632,60128.0,60127.0,0.81520187]
[1728610776229,0.001632,60128.0,60127.0,0.91260187]
[1728610777080,0.001632,60128.0,60127.0,0.89860187]
[1728610777506,0.001632,60128.0,60127.0,0.91260187]
[1728610777944,0.001632,60134.0,60133.0,0.03]
[1728610778152,0.001632,60134.0,60133.0,0.79755971]
[1728610778381,0.001632,60134.0,60133.0,0.87543487]
[1728610779259,0.001632,60134.0,60133.0,0.88943487]
[1728610780301,0.24974609,60146.0,60145.0,0.156638]
[1728610780517,0.2701559,60146.0,60145.0,0.58151301]
[1728610780708,0.02040981,60146.0,60145.0,0.57618862]
[1728610780928,0.001632,60147.0,60146.0,0.005]
[1728610781132,0.001632,60147.0,60146.0,0.42726875]
[1728610781337,0.001632,60147.0,60146.0,0.4239443]
[1728610782180,0.001632,60147.0,60146.0,0.4379443]
[1728610782803,0.001632,60147.0,60146.0,0.4399443]
[1728610783013,0.001632,60147.0,60146.0,0.4539443]
[1728610786926,0.001632,60147.0,60146.0,0.4399443]
[1728610787129,0.001632,60147.0,60146.0,0.4539443]
[1728610787339,0.001632,60147.0,60146.0,0.45349198]
[1728610787542,0.001632,60147.0,60146.0,0.46749198]
[1728610787762,0.001632,60147.0,60146.0,0.45349198]
[1728610788005,0.001632,60147.0,60146.0,0.46749198]
[1728610788259,0.001632,60147.0,60146.0,0.4519443]
[1728610788473,0.001632,60147.0,60146.0,0.4379443]
[1728610788676,0.001632,60147.0,60146.0,0.4399443]
[1728610788915,0.001632,60147.0,60146.0,0.4539443]
[1728610789810,0.001632,60147.0,60146.0,0.4399443]
[1728610790261,0.001632,60147.0,60146.0,0.4539443]
[1728610790546,0.001632,60147.0,60146.0,0.4519443]
[1728610791007,0.001632,60147.0,60146.0,0.60311045]
[1728610791457,0.001632,60147.0,60146.0,0.4539443]
[1728610791839,0.001632,60147.0,60146.0,0.60313602]
[1728610792287,0.001632,60147.0,60146.0,0.4539443]
[1728610792509,0.001632,60147.0,60146.0,0.60313602]
[1728610793926,0.001632,60147.0,60146.0,0.58913602]
[1728610794132,0.001632,60147.0,60146.0,0.57513602]
[1728610794380,0.001632,60147.0,60146.0,0.4539443]
[1728610795355,0.001632,60147.0,60146.0,0.60313858]
[1728610795603,0.001632,60147.0,60146.0,0.4539443]
[1728610796292,0.001632,60147.0,60146.0,0.4519443]
[1728610796638,0.001632,60147.0,60146.0,0.4539443]
[1728610798262,0.001632,60147.0,60146.0,0.4519443]
[1728610799686,0.001632,60147.0,60146.0,0.4539443]
[1728610801596,0.001632,60147.0,60146.0,0.46949632]
[1728610802528,0.001632,60147.0,60146.0,0.46949988]
[1728610803660,0.001632,60147.0,60146.0,0.46749988]
[1728610808111,0.001632,60147.0,60146.0,0.46949988]
[1728610808337,0.001632,60147.0,60146.0,0.46952846]
[1728610808550,0.001632,60147.0,60146.0,0.52140382]
[1728610809219,0.001632,60147.0,60146.0,0.51940382]
[1728610809713,0.001632,60147.0,60146.0,0.66859848]
[1728610810789,0.001632,60147.0,60146.0,0.51940382]
[1728610810997,0.001632,60147.0,60146.0,0.52140382]
[1728610811670,0.001632,60147.0,60146.0,0.52141481]
[1728610812105,0.001632,60147.0,60146.0,0.67060947]
[1728610812621,0.001632,60147.0,60146.0,0.66866817]
[1728610813693,0.001632,60147.0,60146.0,0.67066817]
[1728610813898,0.001632,60147.0,60146.0,0.52141481]
[1728610814337,0.001632,60154.0,60153.0,0.256618]
[1728610814558,0.001632,60154.0,60153.0,0.92813089]
[1728610814793,0.01986245,60154.0,60153.0,0.78293516]
[1728610814991,0.001632,60154.0,60153.0,0.79852834]
[1728610815249,0.001632,60154.0,60153.0,1.01894433]
[1728610815694,0.001632,60154.0,60153.0,1.21866058]
[1728610815915,0.001632,60154.0,60153.0,0.99824459]
[1728610816165,0.001632,60154.0,60153.0,0.91182834]
[1728610816835,0.001632,60154.0,60153.0,0.91031756]
[1728610817062,0.001632,60154.0,60153.0,1.03873381]
[1728610817319,0.001632,60154.0,60153.0,0.93831756]
[1728610817578,0.001632,60154.0,60153.0,1.03873381]
[1728610817817,0.001632,60162.0,60160.0,0.5358335]
[1728610818038,0.001632,60162.0,60160.0,0.79561134]
[1728610819257,0.001632,60166.0,60163.0,0.256593]
[1728610819515,0.001632,60166.0,60163.0,1.01793199]
[1728610819775,0.001632,60166.0,60163.0,0.79430334]
[1728610820524,0.001632,60166.0,60163.0,0.77871016]
[1728610820987,0.001632,60166.0,60163.0,0.80671016]
[1728610822149,0.001632,60166.0,60163.0,0.79271016]
[1728610822362,0.001632,60166.0,60163.0,0.80671016]
[1728610822684,0.001632,60166.0,60163.0,0.82222633]
[1728610822802,0.001632,60166.0,60163.0,0.82057848]
[1728610823020,0.001632,60166.0,60163.0,0.80657848]
[1728610823289,0.001632,60166.0,60163.0,0.83457848]
[1728610823540,0.001632,60166.0,60163.0,0.82577441]
[1728610823773,0.001632,60166.0,60163.0,0.60571008]
[1728610824024,0.001632,60166.0,60163.0,0.56783472]
[1728610824268,0.001632,60166.0,60163.0,0.55383472]
[1728610824509,0.001632,60166.0,60163.0,0.75378217]
[1728610824772,0.001632,60166.0,60163.0,0.74178217]
[1728610825193,0.001632,60166.0,60163.0,0.73978217]
[1728610825410,0.001632,60166.0,60163.0,0.74178217]
[1728610825831,0.001632,60166.0,60163.0,0.57876361]
[1728610826043,0.001632,60166.0,60163.0,0.59276361]
[1728610826266,0.001632,60166.0,60163.0,0.59076361]
[1728610826703,0.001632,60166.0,60163.0,0.59276361]
[1728610826919,0.001632,60166.0,60163.0,0.60676361]
[1728610827354,0.001632,60166.0,60163.0,0.57876361]
[1728610827582,0.001632,60166.0,60163.0,0.59076361]
[1728610827818,0.001632,60166.0,60163.0,0.60676361]
[1728610830487,0.001632,60166.0,60163.0,0.60476361]
[1728610830944,0.001632,60166.0,60163.0,0.60676361]
[1728610832474,0.001632,60166.0,60163.0,0.62227376]
[1728610833589,0.001632,60166.0,60163.0,0.62027376]
[1728610834043,0.001632,60166.0,60163.0,0.62227376]
[1728610834483,0.001632,60166.0,60163.0,0.62227672]
[1728610836866,0.092734,60164.0,60163.0,0.62027672]
[1728610837507,0.001634,60164.0,60163.0,0.62027672]
[1728610839086,0.001634,60164.0,60163.0,0.62227672]
[1728610839259,0.001634,60164.0,60163.0,0.60827672]
[1728610839676,0.001634,60164.0,60163.0,0.62027672]
[1728610840027,0.001634,60164.0,60163.0,0.60627672]
[1728610840233,0.001634,60164.0,60163.0,0.62027672]
[1728610840862,0.001634,60164.0,60163.0,0.62976361]
[1728610841082,1e-06,60164.0,60163.0,0.69703318]
[1728610841481,0.001632,60166.0,60165.0,0.279588]
[1728610841713,0.001632,60166.0,60165.0,0.51948996]
[1728610841920,0.001632,60166.0,60165.0,0.51616687]
[1728610842968,0.001632,60166.0,60165.0,0.53016687]
[1728610843599,0.001632,60166.0,60165.0,0.51616687]
[1728610844494,0.001632,60166.0,60165.0,0.49863416]
[1728610844932,0.001632,60166.0,60165.0,0.51463416]
[1728610845873,0.001632,60166.0,60165.0,0.52863416]
[1728610846288,0.001632,60166.0,60165.0,0.50063416]
[1728610846448,0.001632,60166.0,60165.0,0.71522048]
[1728610846657,0.001632,60166.0,60165.0,0.61492732]
[1728610846863,0.001632,60166.0,60165.0,0.62892732]
[1728610847523,0.001632,60166.0,60165.0,0.62692732]
[1728610848288,0.001632,60166.0,60165.0,0.62892732]
[1728610848768,0.001632,60166.0,60165.0,0.61492732]
[1728610849546,0.001632,60166.0,60165.0,0.62692732]
[1728610849747,0.001632,60166.0,60165.0,0.77588668]
[1728610849948,0.001632,60166.0,60165.0,0.77788668]
[1728610850320,0.001632,60166.0,60165.0,0.62692732]
[1728610850773,0.001632,60166.0,60165.0,0.64249706]
[1728610851461,0.001632,60166.0,60165.0,0.64249837]
[1728610852526,0.001632,60166.0,60165.0,0.79145773]
[1728610853603,0.001632,60166.0,60165.0,0.64249837]
[1728610855255,0.001632,60166.0,60165.0,0.64449837]
[1728610855459,0.001632,60166.0,60165.0,0.62892732]
[1728610855668,0.001632,60166.0,60165.0,0.64450059]
[1728610856084,0.001632,60166.0,60165.0,0.61950059]
[1728610856292,0.001632,60166.0,60165.0,0.62150059]
[1728610856492,0.001632,60166.0,60165.0,0.61950059]
[1728610858662,0.001632,60166.0,60165.0,0.83962541]
[1728610858883,0.001632,60166.0,60165.0,0.8399811]
[1728610859516,0.001632,60166.0,60165.0,0.619501]
[1728610860971,0.096232,60166.0,60165.0,0.619501]
[1728610862219,0.096232,60166.0,60165.0,0.60392732]
[1728610862434,0.096232,60166.0,60165.0,0.61950099]
[1728610862851,0.096232,60166.0,60165.0,0.62150099]
[1728610864825,0.096232,60166.0,60165.0,0.61950099]
[1728610865030,0.096232,60166.0,60165.0,0.62150099]
[1728610865707,0.096232,60166.0,60165.0,0.71979415]
[1728610865918,0.001632,60166.0,60165.0,0.70622048]
[1728610866123,0.001632,60166.0,60165.0,0.72179498]
[1728610866597,0.0992,60172.0,60171.0,0.005]
[1728610866791,0.0992,60172.0,60171.0,0.54307342]
[1728610867000,0.0992,60172.0,60171.0,0.59148682]
[1728610867845,0.0992,60172.0,60171.0,0.60548682]
[1728610868337,0.0992,60172.0,60171.0,0.61948682]
[1728610869685,0.0992,60172.0,60171.0,0.61948742]
[1728610870822,0.0992,60172.0,60171.0,0.61948793]
[1728610871486,0.0992,60172.0,60171.0,0.51919477]
[1728610871692,0.1767,60172.0,60171.0,0.51919477]
[1728610874781,0.17833,60172.0,60171.0,0.51919477]
[1728610876454,0.17833,60172.0,60171.0,0.73998067]
[1728610876697,0.17833,60172.0,60171.0,0.72440506]
[1728610876937,0.17833,60172.0,60171.0,0.50361916]
[1728610881418,0.17833,60172.0,60171.0,0.60391232]
[1728610881642,0.10083,60172.0,60171.0,0.60391232]
[1728610881853,0.00163,60172.0,60171.0,0.82671743]
[1728610882069,0.00163,60172.0,60171.0,0.60591232]
[1728610883367,0.00163,60172.0,60171.0,0.59191232]
[1728610883607,0.00163,60172.0,60171.0,0.60591232]
[1728610884054,0.00163,60172.0,60171.0,0.59191232]
[1728610884267,0.00163,60172.0,60171.0,0.57791232]
[1728610884501,0.00163,60172.0,60171.0,0.60591232]
[1728610884721,0.00163,60172.0,60171.0,0.60391232]
[1728610898323,0.00163,60172.0,60171.0,0.50361916]
[1728610898539,0.00163,60172.0,60171.0,0.60391232]
[1728610901389,0.00163,60172.0,60171.0,0.87665841]
[1728610901630,0.00163,60172.0,60171.0,0.62691232]
[1728610901837,0.00163,60172.0,60171.0,0.70881232]
[1728610902251,0.00163,60172.0,60171.0,0.69481232]
[1728610902453,0.00163,60172.0,60171.0,0.79510548]
[1728610902660,0.00163,60172.0,60171.0,0.80910548]
[1728610902873,0.00163,60172.0,60171.0,0.97728877]
[1728610903444,0.00163,60172.0,60171.0,0.80910548]
[1728610903862,0.00163,60172.0,60171.0,0.79510548]
[1728610904495,0.00163,60172.0,60171.0,0.80910548]
[1728610904735,0.00163,60172.0,60171.0,0.78110548]
[1728610904946,0.00163,60172.0,60171.0,0.80910548]
[1728610906546,0.00163,60172.0,60171.0,0.91320548]
[1728610907759,0.00163,60172.0,60171.0,0.89920548]
[1728610907970,0.001632,60182.0,60181.0,0.254548]
[1728610908145,0.001632,60182.0,60181.0,0.57921007]
[1728610908348,0.001632,60182.0,60181.0,0.57588732]
[1728610909222,0.096032,60182.0,60181.0,0.47559416]
[1728610909456,0.096032,60182.0,60181.0,0.4238573]
[1728610910093,0.096032,60182.0,60181.0,0.4378573]
[1728610910732,0.096032,60182.0,60181.0,0.4518573]
[1728610912984,0.096032,60182.0,60181.0,0.55215046]
[1728610918661,0.096032,60182.0,60181.0,0.4518573]
[1728610919153,0.096032,60182.0,60181.0,0.57624168]
[1728610921160,0.096032,60182.0,60181.0,0.57624425]
[1728610923138,0.096032,60182.0,60181.0,0.56224425]
[1728610923633,0.096032,60182.0,60181.0,0.4518573]
[1728610923882,0.096032,60182.0,60181.0,0.4378573]
[1728610924362,0.096032,60182.0,60181.0,0.4518573]
[1728610926837,0.096032,60182.0,60181.0,0.60114323]
[1728610927039,0.096032,60182.0,60181.0,0.4518573]
[1728610928130,0.096032,60182.0,60181.0,0.60114323]
[1728610928768,0.096032,60182.0,60181.0,0.58714323]
[1728610928980,0.096032,60182.0,60181.0,0.60114323]
[1728610929199,0.096032,60182.0,60181.0,0.58714323]
[1728610929764,0.096032,60182.0,60181.0,0.60114323]
[1728610929972,0.096032,60182.0,60181.0,0.60119153]
[1728610930196,0.096032,60182.0,60181.0,0.58719153]
[1728610930711,0.096032,60182.0,60181.0,0.60119153]
[1728610930918,0.096032,60182.0,60181.0,0.58719153]
[1728610931527,0.096032,60182.0,60181.0,0.60119153]
[1728610931782,0.096032,60182.0,60181.0,0.58719153]
[1728610932101,0.096032,60182.0,60181.0,0.60119153]
[1728610932573,0.096032,60182.0,60181.0,0.58719153]
[1728610933008,0.096032,60182.0,60181.0,0.60119153]
[1728610933440,0.096032,60182.0,60181.0,0.58719153]
[1728610933680,0.096032,60182.0,60181.0,0.61519153]
[1728610933891,0.096032,60182.0,60181.0,0.4378573]
[1728610934110,0.096032,60182.0,60181.0,0.4518573]
[1728610934975,0.096032,60182.0,60181.0,0.4378573]
[1728610935174,0.096032,60182.0,60181.0,0.4518573]
[1728610935859,0.096032,60182.0,60181.0,0.4238573]
[1728610936072,0.096032,60182.0,60181.0,0.4518573]
[1728610936284,0.096032,60182.0,60181.0,0.4378573]
[1728610936700,0.096032,60182.0,60181.0,0.4518573]
[1728610940556,0.096032,60182.0,60181.0,0.3468573]
[1728610941875,0.096032,60182.0,60181.0,0.36243267]
[1728610944804,0.096032,60182.0,60181.0,0.3468573]
[1728610947908,0.096032,60182.0,60181.0,0.36243407]
[1728610948958,0.096032,60182.0,60181.0,0.3468573]
[1728610949159,0.096032,60182.0,60181.0,0.36243522]
[1728610950031,0.096032,60182.0,60181.0,0.5118907]
[1728610950466,0.001632,60182.0,60181.0,0.46743522]
[1728610950675,0.001632,60182.0,60181.0,0.60134814]
[1728610950886,0.001632,60182.0,60181.0,0.60134692]
[1728610951997,0.001632,60182.0,60181.0,0.549434]
[1728610952218,0.001632,60182.0,60181.0,0.60134867]
[1728610952459,0.001632,60182.0,60181.0,0.82199838]
[1728610953556,0.001632,60182.0,60181.0,0.60134867]
[1728610953761,0.001632,60182.0,60181.0,0.82203305]
[1728610953971,0.001632,60182.0,60181.0,0.82203593]
[1728610954600,0.001632,60182.0,60181.0,0.60134867]
[1728610955227,0.001632,60182.0,60181.0,0.82206442]
[1728610955441,0.001632,60182.0,60181.0,0.58577197]
[1728610955661,0.001632,60182.0,60181.0,0.601346]
[1728610956470,0.001632,60182.0,60181.0,0.8220706]
[1728610956691,0.001632,60182.0,60181.0,0.601346]
[1728610959368,0.001632,60182.0,60181.0,0.519346]
[1728610961461,0.001632,60182.0,60181.0,0.521346]
[1728610962075,0.001632,60182.0,60181.0,0.52134116]
[1728610964988,0.001632,60182.0,60181.0,0.51934116]
[1728610965233,0.001632,60182.0,60181.0,0.50377197]
[1728610965478,0.001632,60182.0,60181.0,0.51933877]
[1728610968786,0.001632,60182.0,60181.0,0.50377197]
[1728610969008,0.001632,60182.0,60181.0,0.51933751]
[1728610977858,0.100732,60182.0,60181.0,0.51933751]
[1728610981070,0.100732,60182.0,60181.0,0.50377197]
[1728610989287,0.100732,60182.0,60181.0,0.39877197]
[1728610989288,0.180232,60182.0,60181.0,0.39877197]
[1728610989505,0.180232,60182.0,60181.0,0.3468573]
[1728610989933,0.180232,60182.0,60181.0,0.3328573]
[1728610990363,0.180232,60182.0,60181.0,0.3468573]
[1728610990594,0.180232,60182.0,60181.0,0.49634351]
[1728610991468,0.180232,60182.0,60181.0,0.48234351]
[1728610992352,0.180232,60182.0,60181.0,0.49634351]
[1728610995675,0.180232,60182.0,60181.0,0.3468573]
[1728610996358,0.180232,60182.0,60181.0,0.4963386]
[1728610999966,0.180232,60182.0,60181.0,0.49630929]
[1728611000810,0.180232,60182.0,60181.0,0.3468573]
[1728611003497,0.100732,60182.0,60181.0,0.44715046]
[1728611003755,0.100732,60182.0,60181.0,0.3468573]
[1728611005886,0.100732,60182.0,60181.0,0.49628127]
[1728611007977,0.100732,60182.0,60181.0,0.3468573]
[1728611010634,0.181332,60182.0,60181.0,0.3468573]
[1728611012731,0.181332,60182.0,60181.0,0.3328573]
[1728611013443,0.100732,60182.0,60181.0,0.3188573]
[1728611013767,0.100732,60182.0,60181.0,0.3318573]
[1728611014168,0.100732,60182.0,60181.0,0.3458573]
[1728611014617,0.100732,60182.0,60181.0,0.3318573]
[1728611014841,0.100732,60182.0,60181.0,0.3438573]
[1728611027547,0.100732,60182.0,60181.0,0.49330168]
[1728611028395,0.100732,60182.0,60181.0,0.49334264]
[1728611031465,0.100732,60182.0,60181.0,0.3438573]
[1728611035023,0.100732,60182.0,60181.0,0.174548]
[1728611035438,0.12190637,60182.0,60181.0,0.174548]
[1728611041390,0.12190637,60182.0,60181.0,0.32414709]
[1728611042236,0.100732,60182.0,60181.0,0.32414709]
[1728611042975,0.100732,60182.0,60181.0,0.174548]
[1728611043387,0.100732,60182.0,60181.0,0.32414283]
[1728611043595,0.12190363,60182.0,60181.0,0.32414283]
[1728611049708,0.12190363,60182.0,60181.0,0.31114283]
[1728611050146,0.12190363,60182.0,60181.0,0.29914283]
[1728611050397,0.12190363,60182.0,60181.0,0.149548]
[1728611050603,0.12190363,60182.0,60181.0,0.162548]
[1728611051937,0.12190363,60182.0,60181.0,0.175548]
[1728611052357,0.12190363,60182.0,60181.0,0.162548]
[1728611053248,0.12190363,60182.0,60181.0,0.175548]
[1728611054510,0.100732,60182.0,60181.0,0.175548]
[1728611055159,0.12190363,60182.0,60181.0,0.175548]
[1728611056191,0.100732,60182.0,60181.0,0.175548]
[1728611056618,0.12189947,60182.0,60181.0,0.175548]
[1728611065146,0.176532,60182.0,60181.0,0.32518244]
[1728611065363,0.176532,60182.0,60181.0,0.17563644]
[1728611065576,0.44753879,60182.0,60181.0,0.026]
[1728611066868,0.44753879,60182.0,60181.0,0.013]
[1728611067089,0.44753879,60182.0,60177.0,0.29919444]
[1728611067090,0.0955,60180.0,60177.0,0.29919444]
[1728611067298,0.10029316,60179.0,60176.0,0.39938253]
[1728611067497,0.0952,60178.0,60176.0,0.54894253]
[1728611067725,0.0211621,60177.0,60176.0,0.29919644]
[1728611068047,0.1163621,60177.0,60176.0,0.29919644]
[1728611068915,0.1163621,60177.0,60176.0,0.30719644]
[1728611069544,0.1163621,60177.0,60176.0,0.15756]
[1728611069787,0.1163621,60177.0,60176.0,0.16456]
[1728611069999,0.1163621,60177.0,60176.0,0.15756]
[1728611070432,0.1163621,60177.0,60176.0,0.16456]
[1728611081790,0.1163621,60177.0,60176.0,0.015]
[1728611081970,0.1942621,60177.0,60176.0,0.015]
[1728611082833,0.1958941,60177.0,60176.0,0.015]
[1728611083248,0.1958941,60177.0,60176.0,0.13957803]
[1728611083668,0.1958941,60177.0,60176.0,0.28913903]
[1728611084298,0.1958941,60177.0,60176.0,0.28913321]
[1728611084498,0.174732,60177.0,60176.0,0.28913321]
[1728611084859,0.19587959,60177.0,60176.0,0.28913321]
[1728611089085,0.19587959,60177.0,60176.0,0.28911456]
[1728611092371,0.19587959,60177.0,60176.0,0.13955356]
[1728611092625,0.19587959,60177.0,60176.0,0.28911456]
[1728611093996,0.19587959,60177.0,60176.0,0.28910984]
[1728611098663,0.19587959,60177.0,60176.0,0.28911945]
[1728611100712,0.11797959,60177.0,60176.0,0.28911945]
[1728611102640,0.11797959,60177.0,60176.0,0.164561]
[1728611107513,0.11797959,60177.0,60176.0,0.3338703]
[1728611107514,0.02277959,60177.0,60176.0,0.3338703]
[1728611107806,0.001632,60177.0,60176.0,0.43416346]
[1728611108987,0.001632,60177.0,60176.0,1.03195343]
[1728611109246,0.001632,60177.0,60176.0,0.76279201]
[1728611109956,0.001632,60177.0,60176.0,0.75479201]
[1728611110665,0.001632,60177.0,60176.0,0.74779201]
[1728611111622,0.001632,60177.0,60176.0,0.77479201]
[1728611111884,0.001632,60177.0,60176.0,0.76079201]
[1728611112122,0.001632,60177.0,60176.0,0.74779201]
[1728611112318,0.001632,60177.0,60176.0,0.77579201]
[1728611112796,0.001632,60177.0,60176.0,0.72386346]
[1728611113538,0.001632,60177.0,60176.0,0.82415662]
[1728611114010,0.001632,60177.0,60176.0,0.72386346]
[1728611116207,0.001632,60177.0,60176.0,0.72586346]
[1728611116747,0.001632,60177.0,60176.0,0.72386346]
[1728611117631,0.001632,60177.0,60176.0,0.94428038]
[1728611117871,0.001632,60177.0,60176.0,0.66758038]
[1728611118094,0.001632,60177.0,60176.0,0.3328703]
[1728611118311,0.001632,60177.0,60176.0,0.3188703]
[1728611118521,0.02301957,60177.0,60176.0,0.3328703]
[1728611118762,0.001632,60177.0,60176.0,0.3468703]
[1728611118973,0.001632,60177.0,60176.0,0.3188703]
[1728611119186,0.001632,60177.0,60176.0,0.3328703]
[1728611119452,0.001632,60177.0,60176.0,0.3468703]
[1728611120990,0.001632,60177.0,60176.0,0.3328703]
[1728611121436,0.001632,60177.0,60176.0,0.3468703]
[1728611125101,0.001632,60177.0,60176.0,0.4712894]
[1728611125303,0.001632,60177.0,60176.0,0.47129053]
[1728611125507,0.001632,60177.0,60176.0,0.3468703]
[1728611128533,0.001632,60177.0,60176.0,0.77336556]
[1728611128731,0.001632,60177.0,60176.0,0.74922419]
[1728611129093,0.001632,60177.0,60176.0,0.84951735]
[1728611129293,0.001632,60177.0,60176.0,0.74922419]
[1728611130129,0.001632,60177.0,60176.0,0.74917502]
[1728611132622,0.001632,60177.0,60176.0,0.75117502]
[1728611133796,0.001632,60177.0,60176.0,0.75782202]
[1728611134271,0.001632,60177.0,60176.0,0.75582202]
[1728611134816,0.001632,60177.0,60176.0,0.5374173]
[1728611135058,0.001632,60177.0,60176.0,0.75777229]
[1728611138449,0.001632,60177.0,60176.0,0.75577229]
[1728611139645,0.001632,60177.0,60176.0,0.7556887]
[1728611140057,0.001632,60177.0,60176.0,0.7416887]
[1728611140259,0.001632,60177.0,60176.0,0.5214173]
[1728611140507,0.001632,60177.0,60176.0,0.7556887]
[1728611140711,0.001632,60177.0,60176.0,0.80753226]
[1728611140943,0.001632,60177.0,60176.0,0.79353226]
[1728611141150,0.001632,60177.0,60176.0,0.77953226]
[1728611141348,0.001632,60177.0,60176.0,0.82309396]
[1728611142129,0.001632,60177.0,60176.0,0.80753226]
[1728611142336,0.001632,60177.0,60176.0,0.82309392]
[1728611144053,0.001632,60177.0,60176.0,0.82651568]
[1728611144962,0.001632,60189.0,60188.0,0.0856]